fUSD/lending_fUSD_20260614
["ID","MTS","AMOUNT","RATE_DAILY","PERIOD"]
[424991430,1781383846000,-605.63007347,0.00024331,2]
[424991423,1781383846000,-150.0,0.00024164,2]
[424991428,1781383846000,-599.60298507,0.00024331,2]
[424991419,1781383846000,-167.0,0.00024,2]
[424991411,1781383846000,-151.0,0.000239,2]
[424991424,1781383846000,-506.0,0.000242,7]
[424991421,1781383846000,-725.0,0.00024,2]
[424991420,1781383846000,-646.0,0.00024,2]
[424991422,1781383846000,-350.0,0.00024149,2]
[424991417,1781383846000,-496.0,0.00024,2]
[424991416,1781383846000,-160.49854041,0.00024,2]
[424991415,1781383846000,-262.0,0.00024,2]
[424991414,1781383846000,-500.0,0.00024,2]
[424991413,1781383846000,-500.0,0.00023999,2]
[424991412,1781383846000,-350.0,0.00023949,2]
[424991434,1781383846000,-900.0,0.00024384,2]
[424991418,1781383846000,-188.0,0.00024,2]
[424991436,1781383846000,-350.0,0.00024464,2]
[424991441,1781383846000,-240.114956,0.00024658,2]
[424991458,1781383846000,-500.0,0.00025,2]
[424991438,1781383846000,-1000.0,0.00024658,2]
[424991462,1781383846000,-178.92154219,0.00025,2]
[424991461,1781383846000,-201.0,0.00025,2]
[424991459,1781383846000,-280.0,0.00025,2]
[424991453,1781383846000,-500.0,0.00024977,2]
[424991454,1781383846000,-502.40357503,0.00024999,2]
[424991455,1781383846000,-1640.04,0.00024999,2]
[424991456,1781383846000,-500.0,0.00024999,2]
[424991460,1781383846000,-498.0,0.00025,2]
[424991452,1781383846000,-643.5732,0.00024949,2]
[424991451,1781383846000,-151.0,0.00024949,2]
[424991448,1781383846000,-530.1025,0.000249,2]
[424991457,1781383846000,-28009.5757466,0.00025,7]
[424991443,1781383846000,-151.0,0.00024658,2]
[424991437,1781383846000,-1760.96695644,0.00024582,2]
[424991440,1781383846000,-175.13,0.00024658,2]
[424991435,1781383846000,-350.0,0.00024384,2]
[424991446,1781383846000,-448.04698063,0.0002488,2]
[424991442,1781383846000,-151.0,0.00024658,2]
[424991439,1781383846000,-151.0,0.00024658,2]
[424991445,1781383846000,-440.72,0.00024673,7]
[424991450,1781383846000,-226.65659514,0.00024949,2]
[424991449,1781383846000,-2500.0,0.000249,2]
[424991447,1781383846000,-217.15233878,0.0002488,2]
[424991444,1781383846000,-156.01674226,0.00024658,2]
[424991488,1781383847000,-448.04698063,0.00025428,2]
[424991492,1781383847000,-643.57321,0.00025549,2]
[424991489,1781383847000,-225.18697532,0.00025428,2]
[424991493,1781383847000,-3557.0,0.00025594,2]
[424991490,1781383847000,-506.0,0.0002544,8]
[424991494,1781383847000,-1359.0,0.00025594,2]
[424991491,1781383847000,-350.0,0.00025463,2]
[424991496,1781383847000,-1275.0,0.00025594,2]
[424991506,1781383847000,-369.0,0.00025907,5]
[424991499,1781383847000,-154.0,0.00025677,2]
[424991502,1781383847000,-643.5732,0.00025749,2]
[424991500,1781383847000,-1348.0,0.00025682,10]
[424991501,1781383847000,-500.0,0.00025726,2]
[424991503,1781383847000,-150.0,0.00025754,2]
[424991508,1781383847000,-643.57321,0.00025949,2]
[424991495,1781383847000,-383.0,0.00025594,2]
[424991497,1781383847000,-3644.0,0.00025594,2]
[424991487,1781383847000,-150.0,0.00025373,2]
[424991472,1781383847000,-233.635476,0.00025038,14]
[424991486,1781383847000,-151.0,0.00025354,2]
[424991467,1781383847000,-151.0,0.00025,2]
[424991470,1781383847000,-650.0,0.00025,2]
[424991468,1781383847000,-151.0,0.00025,2]
[424991471,1781383847000,-738.84531792,0.00025,2]
[424991469,1781383847000,-151.0,0.00025,2]
[424991482,1781383847000,-155.0,0.00025296,7]
[424991473,1781383847000,-250.0,0.00025054,2]
[424991485,1781383847000,-151.0,0.00025354,2]
[424991483,1781383847000,-269.0,0.00025306,5]
[424991474,1781383847000,-250.0,0.00025054,2]
[424991476,1781383847000,-150.0,0.00025054,2]
[424991479,1781383847000,-2000.0,0.00025251,2]
[424991481,1781383847000,-1760.96695644,0.00025263,2]
[424991477,1781383847000,-350.0,0.00025096,2]
[424991478,1781383847000,-643.57321,0.00025149,2]
[424991484,1781383847000,-643.5732,0.00025349,2]
[424991475,1781383847000,-189.0,0.00025054,2]
[424991498,1781383847000,-934.0,0.00025594,2]
[424991480,1781383847000,-601.0,0.00025251,2]
[424991504,1781383847000,-157.56,0.00025799,2]
[424991545,1781383847000,-19094.62057308,0.00026781,7]
[424991528,1781383847000,-150.0,0.00026641,2]
[424991530,1781383847000,-2829.38317638,0.00026681,2]
[424991531,1781383847000,-300.0,0.0002678,10]
[424991536,1781383847000,-1640.04,0.0002678,2]
[424991537,1781383847000,-151.0,0.0002678,2]
[424991534,1781383847000,-500.0,0.0002678,2]
[424991525,1781383847000,-2000.0,0.00026621,2]
[424991532,1781383847000,-300.0,0.0002678,10]
[424991533,1781383847000,-500.0,0.0002678,2]
[424991540,1781383847000,-540.24,0.0002678,2]
[424991539,1781383847000,-151.0,0.0002678,2]
[424991538,1781383847000,-151.0,0.0002678,2]
[424991541,1781383847000,-23362.3179937,0.00026781,7]
[424991543,1781383847000,-14164.97651124,0.00026781,7]
[424991542,1781383847000,-154687.47669544,0.00026781,7]
[424991535,1781383847000,-500.0,0.0002678,2]
[424991529,1781383847000,-506.0,0.0002668,10]
[424991526,1781383847000,-601.0,0.00026621,2]
[424991527,1781383847000,-1760.96695644,0.00026626,2]
[424991507,1781383847000,-1760.96695644,0.00025945,2]
[424991509,1781383847000,-448.04698063,0.00025976,2]
[424991510,1781383847000,-233.5188934,0.00025976,2]
[424991512,1781383847000,-156.01674226,0.00026027,2]
[424991515,1781383847000,-353.0,0.000261,2]
[424991513,1781383847000,-350.0,0.00026038,2]
[424991516,1781383847000,-200.0,0.000261,2]
[424991517,1781383847000,-350.0,0.00026274,2]
[424991511,1781383847000,-550.0,0.00026,2]
[424991514,1781383847000,-3513.0,0.000261,2]
[424991518,1781383847000,-270.5,0.00026296,2]
[424991519,1781383847000,-155.0,0.00026308,10]
[424991521,1781383847000,-500.0,0.00026523,2]
[424991520,1781383847000,-500.0,0.00026498,2]
[424991523,1781383847000,-242.15909246,0.00026524,2]
[424991524,1781383847000,-448.04698063,0.00026524,2]
[424991522,1781383847000,-500.0,0.00026523,2]
[424991544,1781383847000,-76554.81942314,0.00026781,7]
[424991505,1781383847000,-365.0,0.00025809,5]
[424991546,1781383848000,-2595.12786682,0.00026781,7]
[424991547,1781383848000,-1542.34671911,0.00026781,7]
[424991552,1781384832000,-250.0,0.00014,2]
[424991554,1781384832000,-281.2101365,0.00014,2]
[424991556,1781384832000,-18.32544224,0.00014001,2]
[424991555,1781384832000,-582.66625181,0.00014001,2]
[424991553,1781384832000,-214.68590291,0.00014,2]
[424991574,1781385031000,-266.3568913,0.00015305,2]
[424991576,1781385031000,-131.11254096,0.00015305,2]
[424991579,1781385031000,-300.0,0.00016,2]
[424991578,1781385031000,-200.0,0.000154,2]
[424991577,1781385031000,-206.95096553,0.000154,2]
[424991582,1781385031000,-313.0,0.00016104,2]
[424991580,1781385031000,-314.0,0.00016104,2]
[424991575,1781385031000,-292.41951053,0.00015305,2]
[424991587,1781385031000,-319.0,0.00016105,2]
[424991596,1781385031000,-318.0,0.00016105,2]
[424991588,1781385031000,-320.0,0.00016105,2]
[424991586,1781385031000,-310.0,0.00016105,2]
[424991589,1781385031000,-151.0,0.00016105,2]
[424991581,1781385031000,-150.0,0.00016104,2]
[424991572,1781385031000,-2361.39073885,0.00014801,2]
[424991573,1781385031000,-899.9699634,0.00015305,2]
[424991583,1781385031000,-319.0,0.00016104,2]
[424991558,1781385031000,-197.71326568,0.00013937,2]
[424991560,1781385031000,-24.72685237,0.00014,7]
[424991559,1781385031000,-1061.74988195,0.00013938,2]
[424991561,1781385031000,-265.83293506,0.00014,7]
[424991563,1781385031000,-287.83557064,0.00014001,2]
[424991564,1781385031000,-500.0,0.00014037,2]
[424991570,1781385031000,-229.41657676,0.0001428,7]
[424991566,1781385031000,-500.0,0.00014037,2]
[424991567,1781385031000,-20.68427287,0.00014037,2]
[424991562,1781385031000,-180.52745642,0.00014001,2]
[424991571,1781385031000,-155.91926115,0.00014801,2]
[424991568,1781385031000,-516.84987062,0.00014037,2]
[424991565,1781385031000,-157.64867446,0.00014037,2]
[424991569,1781385031000,-150.0,0.00014076,2]
[424991597,1781385031000,-318.0,0.00016105,2]
[424991584,1781385031000,-315.0,0.00016105,2]
[424991591,1781385031000,-310.0,0.00016105,2]
[424991585,1781385031000,-150.0,0.00016105,2]
[424991590,1781385031000,-310.0,0.00016105,2]
[424991615,1781385031000,-317.0,0.00016204,2]
[424991614,1781385031000,-309.0,0.00016105,2]
[424991616,1781385031000,-316.0,0.00016204,2]
[424991624,1781385031000,-316.0,0.00016205,2]
[424991625,1781385031000,-312.0,0.00016205,2]
[424991621,1781385031000,-151.0,0.00016205,2]
[424991613,1781385031000,-321.0,0.00016105,2]
[424991618,1781385031000,-151.0,0.00016205,2]
[424991622,1781385031000,-150.0,0.00016205,2]
[424991620,1781385031000,-151.0,0.00016205,2]
[424991623,1781385031000,-151.0,0.00016205,2]
[424991627,1781385031000,-151.0,0.00016205,2]
[424991626,1781385031000,-312.0,0.00016205,2]
[424991595,1781385031000,-317.0,0.00016105,2]
[424991619,1781385031000,-151.0,0.00016205,2]
[424991604,1781385031000,-319.0,0.00016105,2]
[424991617,1781385031000,-318.0,0.00016204,2]
[424991607,1781385031000,-151.0,0.00016105,2]
[424991606,1781385031000,-314.0,0.00016105,2]
[424991598,1781385031000,-150.0,0.00016105,2]
[424991594,1781385031000,-152.0,0.00016105,2]
[424991600,1781385031000,-318.0,0.00016105,2]
[424991610,1781385031000,-316.0,0.00016105,2]
[424991611,1781385031000,-150.0,0.00016105,2]
[424991601,1781385031000,-320.0,0.00016105,2]
[424991592,1781385031000,-314.0,0.00016105,2]
[424991599,1781385031000,-312.0,0.00016105,2]
[424991608,1781385031000,-313.0,0.00016105,2]
[424991612,1781385031000,-310.0,0.00016105,2]
[424991605,1781385031000,-316.0,0.00016105,2]
[424991593,1781385031000,-315.0,0.00016105,2]
[424991602,1781385031000,-152.0,0.00016105,2]
[424991609,1781385031000,-317.0,0.00016105,2]
[424991603,1781385031000,-311.0,0.00016105,2]
[424991705,1781385032000,-312.0,0.000201,2]
[424991691,1781385032000,-250.0,0.000201,2]
[424991695,1781385032000,-399.0,0.000201,2]
[424991697,1781385032000,-315.0,0.000201,2]
[424991699,1781385032000,-319.0,0.000201,2]
[424991707,1781385032000,-313.0,0.000201,2]
[424991712,1781385032000,-151.0,0.00020381,2]
[424991701,1781385032000,-319.0,0.000201,2]
[424991703,1781385032000,-410.0,0.000201,2]
[424991714,1781385032000,-347.0,0.00021,2]
[424991709,1781385032000,-315.0,0.000201,2]
[424991686,1781385032000,-235.44852284,0.00020029,2]
[424991693,1781385032000,-318.0,0.000201,2]
[424991747,1781385032000,-80.15163531,0.000215,2]
[424991718,1781385032000,-452.0,0.00021,2]
[424991721,1781385032000,-507.0,0.00021,2]
[424991727,1781385032000,-224.02349031,0.000215,2]
[424991723,1781385032000,-23151.0082,0.00021392,2]
[424991725,1781385032000,-174.61919141,0.000215,2]
[424991737,1781385032000,-500.0,0.000215,2]
[424991731,1781385032000,-151.0,0.000215,2]
[424991733,1781385032000,-578.20924308,0.000215,2]
[424991735,1781385032000,-500.0,0.000215,2]
[424991741,1781385032000,-500.0,0.000215,2]
[424991739,1781385032000,-151.0,0.000215,2]
[424991743,1781385032000,-500.0,0.000215,2]
[424991684,1781385032000,-507.0,0.0002,2]
[424991716,1781385032000,-154.0,0.00021,2]
[424991679,1781385032000,-154.0,0.0002,2]
[424991650,1781385032000,-151.0,0.00016205,2]
[424991683,1781385032000,-452.0,0.0002,2]
[424991628,1781385032000,-309.0,0.00016205,2]
[424991634,1781385032000,-314.0,0.00016205,2]
[424991631,1781385032000,-321.0,0.00016205,2]
[424991629,1781385032000,-309.0,0.00016205,2]
[424991630,1781385032000,-318.0,0.00016205,2]
[424991640,1781385032000,-151.0,0.00016205,2]
[424991632,1781385032000,-152.0,0.00016205,2]
[424991638,1781385032000,-318.0,0.00016205,2]
[424991636,1781385032000,-310.0,0.00016205,2]
[424991642,1781385032000,-315.0,0.00016205,2]
[424991645,1781385032000,-320.0,0.00016205,2]
[424991648,1781385032000,-309.0,0.00016205,2]
[424991643,1781385032000,-318.0,0.00016205,2]
[424991687,1781385032000,-403.0,0.00020048,2]
[424991652,1781385032000,-309.0,0.00016205,2]
[424991654,1781385032000,-320.0,0.00016205,2]
[424991656,1781385032000,-318.0,0.00016205,2]
[424991660,1781385032000,-3943.22268024,0.000179,2]
[424991662,1781385032000,-151.0,0.000179,2]
[424991664,1781385032000,-151.0,0.000179,2]
[424991667,1781385032000,-151.0,0.000179,2]
[424991671,1781385032000,-151.0,0.000179,2]
[424991673,1781385032000,-151.0,0.000179,2]
[424991675,1781385032000,-150.0,0.00018,2]
[424991677,1781385032000,-347.0,0.0002,2]
[424991689,1781385032000,-399.0,0.0002007,2]
[424991669,1781385032000,-150.0,0.000179,2]
[424991681,1781385032000,-168.0,0.0002,2]
[424991658,1781385032000,-150.0,0.00016205,2]
[424991751,1781385032000,-151.0,0.000215,2]
[424991729,1781385032000,-154.03743105,0.000215,2]
[424991753,1781385032000,-500.0,0.000215,2]
[424991808,1781385032000,-151.0,0.00021775,2]
[424991807,1781385032000,-154.03743114,0.00021775,2]
[424991809,1781385032000,-151.0,0.0002183,2]
[424991821,1781385032000,-151.0,0.0002205,2]
[424991811,1781385032000,-105.44100572,0.00021918,2]
[424991822,1781385032000,-150.0,0.00022199,2]
[424991810,1781385032000,-151.0,0.00021885,2]
[424991812,1781385032000,-44.55899428,0.00021918,2]
[424991816,1781385032000,-168.0,0.00022,2]
[424991814,1781385032000,-151.0,0.00021995,2]
[424991813,1781385032000,-151.0,0.0002194,2]
[424991817,1781385032000,-452.0,0.00022,2]
[424991818,1781385032000,-507.0,0.00022,2]
[424991799,1781385032000,-154.03743105,0.00021555,2]
[424991819,1781385032000,-181.08010149,0.00022048,2]
[424991823,1781385032000,-166.66,0.00022216,30]
[424991834,1781385032000,-353.18,0.00022466,2]
[424991826,1781385032000,-558.92777016,0.00022407,2]
[424991824,1781385032000,-151.0,0.00022353,2]
[424991825,1781385032000,-599.09254202,0.00022407,2]
[424991827,1781385032000,-599.09254201,0.00022407,2]
[424991829,1781385032000,-558.92777015,0.00022407,2]
[424991830,1781385032000,-1504.55186911,0.00022407,2]
[424991833,1781385032000,-458.81228711,0.00022407,2]
[424991832,1781385032000,-1045.73958199,0.00022407,2]
[424991831,1781385032000,-1504.5518691,0.00022407,2]
[424991828,1781385032000,-558.92777015,0.00022407,2]
[424991749,1781385032000,-500.0,0.000215,2]
[424991820,1781385032000,-224.02349031,0.00022048,2]
[424991800,1781385032000,-151.0,0.00021555,2]
[424991815,1781385032000,-347.0,0.00022,2]
[424991805,1781385032000,-154.03743105,0.0002172,2]
[424991765,1781385032000,-500.0,0.000215,2]
[424991745,1781385032000,-70.84836469,0.000215,2]
[424991806,1781385032000,-151.0,0.0002172,2]
[424991758,1781385032000,-500.0,0.000215,2]
[424991767,1781385032000,-151.0,0.000215,2]
[424991760,1781385032000,-151.0,0.000215,2]
[424991761,1781385032000,-610.78473626,0.000215,2]
[424991763,1781385032000,-152.0,0.000215,2]
[424991769,1781385032000,-361.46415762,0.000215,2]
[424991771,1781385032000,-138.53584238,0.000215,2]
[424991775,1781385032000,-49.9461978,0.000215,2]
[424991773,1781385032000,-152.0,0.000215,2]
[424991779,1781385032000,-500.0,0.000215,2]
[424991789,1781385032000,-151.0,0.000215,2]
[424991755,1781385032000,-152.0,0.000215,2]
[424991781,1781385032000,-152.0,0.000215,2]
[424991777,1781385032000,-101.0538022,0.000215,2]
[424991801,1781385032000,-154.03743105,0.0002161,2]
[424991803,1781385032000,-154.03743105,0.00021665,2]
[424991804,1781385032000,-151.0,0.00021665,2]
[424991796,1781385032000,-151.0,0.000215,2]
[424991798,1781385032000,-151.0,0.000215,2]
[424991802,1781385032000,-151.0,0.0002161,2]
[424991791,1781385032000,-152.0,0.000215,2]
[424991787,1781385032000,-152.0,0.000215,2]
[424991783,1781385032000,-151.0,0.000215,2]
[424991785,1781385032000,-532.43578297,0.000215,2]
[424991792,1781385032000,-151.0,0.000215,2]
[424991794,1781385032000,-151.0,0.000215,2]
[424991852,1781385033000,-347.0,0.00024,2]
[424991850,1781385033000,-201.93286098,0.00023692,2]
[424991847,1781385033000,-200.0,0.00023159,2]
[424991854,1781385033000,-507.0,0.00024,2]
[424991853,1781385033000,-452.0,0.00024,2]
[424991855,1781385033000,-166.66,0.00024087,30]
[424991857,1781385033000,-551.24,0.0002411,2]
[424991849,1781385033000,-1292.0,0.00023648,7]
[424991856,1781385033000,-309.03,0.0002411,2]
[424991851,1781385033000,-224.02349031,0.00023692,2]
[424991846,1781385033000,-166.66,0.00023151,30]
[424991841,1781385033000,-452.0,0.00023,2]
[424991845,1781385033000,-224.02349031,0.00023144,2]
[424991844,1781385033000,-194.72792766,0.00023144,2]
[424991842,1781385033000,-507.0,0.00023,2]
[424991843,1781385033000,-150.0,0.00023014,2]
[424991840,1781385033000,-347.0,0.00023,2]
[424991839,1781385033000,-5000.0,0.00022763,2]
[424991838,1781385033000,-166.66,0.00022683,30]
[424991837,1781385033000,-224.02349031,0.00022596,2]
[424991835,1781385033000,-629.99,0.00022466,2]
[424991836,1781385033000,-187.78006524,0.00022596,2]
[424991859,1781385033000,-3644.0,0.00024114,2]
[424991848,1781385033000,-166.66,0.00023619,30]
[424991858,1781385033000,-426.241,0.00024114,2]
[424991861,1781385033000,-151.0,0.00024239,2]
[424991869,1781385033000,-1000.0,0.00024658,2]
[424991868,1781385033000,-500.0,0.00024645,2]
[424991883,1781385033000,-224.02349031,0.00025336,2]
[424991884,1781385033000,-150.0,0.00025373,2]
[424991882,1781385033000,-20.60146314,0.00025336,2]
[424991880,1781385033000,-410.72814993,0.00025,2]
[424991881,1781385033000,-204.58551218,0.00025336,2]
[424991878,1781385033000,-456.0,0.00025,2]
[424991879,1781385033000,-106.27185007,0.00025,2]
[424991877,1781385033000,-351.0,0.00025,2]
[424991874,1781385033000,-224.02349031,0.00024788,2]
[424991876,1781385033000,-500.0,0.00024999,2]
[424991875,1781385033000,-500.0,0.00024999,2]
[424991872,1781385033000,-200.0,0.00024749,2]
[424991860,1781385033000,-150.0,0.00024164,2]
[424991885,1781385033000,-464.02229057,0.00025384,2]
[424991873,1781385033000,-217.15233878,0.00024788,2]
[424991863,1781385033000,-209.40437684,0.0002424,2]
[424991867,1781385033000,-166.66,0.00024554,30]
[424991866,1781385033000,-80.0883624,0.00024324,2]
[424991864,1781385033000,-224.02349031,0.0002424,2]
[424991862,1781385033000,-599.60298507,0.00024239,2]
[424991871,1781385033000,-156.01674226,0.00024658,2]
[424991870,1781385033000,-175.13,0.00024658,2]
[424991865,1781385033000,-70.9116376,0.00024324,2]
[424991894,1781385037000,-634.1600002,0.00025674,2]
[424991887,1781385037000,-35.97770943,0.00025384,2]
[424991890,1781385037000,-150.0,0.0002548,2]
[424991889,1781385037000,-869.56735845,0.00025397,2]
[424991891,1781385037000,-350.0,0.00025495,2]
[424991893,1781385037000,-200.0,0.00025658,2]
[424991892,1781385037000,-500.0,0.00025593,2]
[424991888,1781385037000,-1184.0,0.00025384,10]
[424991899,1781385037000,-6411.174,0.00025949,11]
[424991902,1781385037000,-220.74,0.00026027,7]
[424991900,1781385037000,-330.033,0.00025949,11]
[424991895,1781385037000,-1159.8158917,0.00025674,2]
[424991896,1781385037000,-500.0,0.0002578,5]
[424991898,1781385037000,-224.02349031,0.00025884,2]
[424991901,1781385037000,-156.01674226,0.00026027,2]
[424991897,1781385037000,-233.5188934,0.00025884,2]
[424991903,1781385037000,-393.74,0.00026027,7]
[424991916,1781385038000,-151.0,0.00026296,2]
[424991911,1781385038000,-150.0,0.00026214,2]
[424991912,1781385038000,-1359.0,0.00026214,2]
[424991914,1781385038000,-1275.0,0.00026214,2]
[424991915,1781385038000,-1240.02,0.00026214,2]
[424991910,1781385038000,-150.0,0.00026214,2]
[424991909,1781385038000,-150.0,0.00026214,2]
[424991907,1781385038000,-300.0,0.00026204,7]
[424991913,1781385038000,-383.0,0.00026214,2]
[424991906,1781385038000,-350.0,0.00026204,2]
[424991905,1781385038000,-500.0,0.00026146,2]
[424991904,1781385038000,-307.0,0.000261,2]
[424991918,1781385038000,-869.56735845,0.00026397,2]
[424991908,1781385038000,-150.0,0.00026214,2]
[424991932,1781385038000,-150.0,0.00026641,2]
[424991936,1781385038000,-214.11,0.000267,2]
[424991951,1781385038000,-34289.83932275,0.00026781,7]
[424991944,1781385038000,-500.0,0.0002678,2]
[424991948,1781385038000,-34545.6352061,0.00026781,7]
[424991920,1781385038000,-387.5270676,0.00026432,2]
[424991942,1781385038000,-500.0,0.0002678,2]
[424991940,1781385038000,-157.56,0.00026771,2]
[424991946,1781385038000,-623.1,0.0002678,2]
[424991926,1781385038000,-433.0,0.00026523,2]
[424991928,1781385038000,-200.0,0.00026565,2]
[424991922,1781385038000,-224.02349031,0.00026432,2]
[424991938,1781385038000,-1605.24773685,0.00026744,14]
[424991934,1781385038000,-2500.0,0.00026681,2]
[424991930,1781385038000,-155.0,0.00026627,10]
[424991924,1781385038000,-1354.26943947,0.00026499,7]
[424992016,1781385040000,-1557.07619187,0.00025351,2]
[424992017,1781385040000,-2011.96462247,0.00026781,7]
[424992032,1781385042000,-183.0,0.00021,2]
[424992033,1781385042000,-25840.9764899,0.0002678,7]
[424992034,1781385042000,-1092.05341862,0.00026781,7]
[424992035,1781385042000,-37719.27301306,0.00026781,7]
[424992031,1781385042000,-183.0,0.0002,2]
[424992038,1781385042000,-199.43831319,0.0002685,2]
[424992037,1781385042000,-6000.0,0.00026784,3]
[424992039,1781385042000,-511.14049176,0.00026866,2]
[424992040,1781385042000,-226.0,0.0002693,5]
[424992042,1781385042000,-2410.69,0.00026945,120]
[424992041,1781385042000,-500.0,0.0002693,2]
[424992036,1781385042000,-1139.0,0.00026781,10]
[424992071,1781385043000,-309.0,0.000272,2]
[424992072,1781385043000,-230.68,0.0002724,2]
[424992070,1781385043000,-201.0,0.000272,2]
[424992075,1781385043000,-1503.37,0.00027296,2]
[424992077,1781385043000,-152.0,0.00027376,4]
[424992074,1781385043000,-500.0,0.00027296,2]
[424992086,1781385043000,-500.0,0.00027397,2]
[424992078,1781385043000,-206.0,0.00027388,2]
[424992085,1781385043000,-579.7115723,0.00027397,7]
[424992076,1781385043000,-2000.0,0.00027297,2]
[424992080,1781385043000,-500.0,0.00027396,2]
[424992073,1781385043000,-4236.27417506,0.00027244,14]
[424992083,1781385043000,-151.0,0.00027396,2]
[424992081,1781385043000,-156.01674226,0.00027396,2]
[424992082,1781385043000,-500.0,0.00027396,2]
[424992084,1781385043000,-500.0,0.00027396,2]
[424992087,1781385043000,-193.70126859,0.00027397,2]
[424992090,1781385043000,-429.65909849,0.00027397,2]
[424992096,1781385043000,-359.8651,0.00027397,2]
[424992088,1781385043000,-150.0,0.00027397,2]
[424992089,1781385043000,-1500.0,0.00027397,2]
[424992079,1781385043000,-500.0,0.00027396,2]
[424992067,1781385043000,-419.0,0.00027114,2]
[424992066,1781385043000,-178.00207693,0.00027108,7]
[424992092,1781385043000,-359.8651,0.00027397,2]
[424992043,1781385043000,-151.0,0.00026978,2]
[424992048,1781385043000,-151.0,0.00027,7]
[424992050,1781385043000,-186.5,0.00027,7]
[424992049,1781385043000,-151.0,0.00027,7]
[424992047,1781385043000,-569.0,0.00026991,2]
[424992044,1781385043000,-621.78829552,0.00026978,2]
[424992045,1781385043000,-224.02349031,0.0002698,2]
[424992051,1781385043000,-180.64,0.00027,2]
[424992054,1781385043000,-158.18050764,0.00027106,7]
[424992055,1781385043000,-179.22519342,0.00027106,7]
[424992068,1781385043000,-3644.0,0.00027114,2]
[424992052,1781385043000,-179.78537722,0.00027,2]
[424992057,1781385043000,-151.18511361,0.00027106,7]
[424992056,1781385043000,-156.56537287,0.00027106,7]
[424992058,1781385043000,-167.18829991,0.00027106,7]
[424992061,1781385043000,-179.76872303,0.00027106,7]
[424992063,1781385043000,-165.44787869,0.00027106,7]
[424992060,1781385043000,-167.32222005,0.00027106,2]
[424992059,1781385043000,-174.25112256,0.00027106,7]
[424992062,1781385043000,-189.30783676,0.00027106,7]
[424992065,1781385043000,-156.36301994,0.00027108,7]
[424992064,1781385043000,-164.78954517,0.00027106,7]
[424992053,1781385043000,-7621.0,0.00027102,10]
[424992091,1781385043000,-1023.9,0.00027397,2]
[424992069,1781385043000,-316.0,0.000272,2]
[424992094,1781385043000,-359.8651,0.00027397,2]
[424992128,1781385043000,-179.67302604,0.00027397,7]
[424992120,1781385043000,-162.986725,0.00027397,2]
[424992129,1781385043000,-232.7810073,0.00027397,2]
[424992125,1781385043000,-162.986725,0.00027397,2]
[424992124,1781385043000,-162.986725,0.00027397,2]
[424992123,1781385043000,-162.986725,0.00027397,2]
[424992126,1781385043000,-162.986725,0.00027397,2]
[424992131,1781385043000,-742.66822824,0.00027397,2]
[424992132,1781385043000,-242.20371196,0.00027397,2]
[424992134,1781385043000,-674.75321017,0.00027426,2]
[424992127,1781385043000,-162.986725,0.00027397,2]
[424992139,1781385043000,-224.02349031,0.00027528,2]